[Event "26th OIBM 2023"]
[Site "Gmund am Tegernsee"]
[Date "2023.10.29"]
[Round "2.12"]
[White "Boehmer, Christian"]
[Black "Vogel, Roven"]
[Result "0-1"]
[ECO "B21"]
[WhiteElo "2178"]
[BlackElo "2471"]
[Annotator "ChessBase"]
[PlyCount "76"]
[EventDate "2023.10.04"]
[EventType "swiss"]
[EventCountry "GER"]
[SourceTitle "playchess.com"]
[Source "ChessBase"]
[SourceQuality "1"]
[TimeControl "40/5400+30:1800+30"]

1. e4 {[%emt 0:00:03]} c5 {[%emt 0:00:06]} 2. d4 {[%emt 0:00:18]} cxd4 {[%emt 0:00:08]} 3. c3 {[%emt 0:00:05]} dxc3 {[%emt 0:00:07]} 4. Nxc3 {[%emt 0:00:09]} Nc6 {[%emt 0:00:06]} 5. Nf3 {[%emt 0:00:14]} e6 {[%emt 0:00:06]} 6. Bc4 {[%emt 0:00:12]} Bb4 {[%emt 0:00:56]} 7. O-O {[%emt 0:00:17]} Nge7 {[%emt 0:00:11]} 8. Qc2 {[%emt 0:02:04]} Ng6 {[%emt 0:06:22]} 9. a3 {[%emt 0:04:23]} Be7 {[%emt 0:10:21]} 10. Be3 {[%emt 0:14:23]} b6 {[%emt 0:04:50]} 11. Rad1 {[%emt 0:10:49]} Bb7 {[%emt 0:00:45]} 12. Nd4 {[%emt 0:11:56]} Nxd4 {[%emt 0:02:41]} 13. Bxd4 {[%emt 0:02:43]} O-O {[%emt 0:00:08]} 14. Qd2 {[%emt 0:08:54]} Qc7 {[%emt 0:02:50]} 15. Bd3 {[%emt 0:00:43]} Rad8 {[%emt 0:04:43]} 16. Nb5 {[%emt 0:05:18]} Qb8 {[%emt 0:00:07]} 17. f4 {[%emt 0:00:44]} d6 {[%emt 0:13:58]} 18. f5 {[%emt 0:12:34]} Ne5 {[%emt 0:01:08]} 19. f6 {[%emt 0:04:36]} gxf6 {[%emt 0:01:59]} 20. Qh6 {[%emt 0:01:37]} Rd7 {[%emt 0:11:22]} 21. Rf4 {[%emt 0:02:12]} Ng6 {[%emt 0:01:12]} 22. Bxf6 {[%emt 0:06:36]} Bxf6 {[%emt 0:00:16]} 23. Rxf6 {[%emt 0:00:04]} d5 {[%emt 0:02:10]} 24. exd5 {[%emt 0:06:04]} Bxd5 {[%emt 0:06:16]} 25. Rdf1 {[%emt 0:01:58]} Rc8 {[%emt 0:00:39]} 26. Rxf7 {[%emt 0:01:23]} Rxf7 {[%emt 0:00:05]} 27. Rxf7 {[%emt 0:00:09]} Kxf7 {[%emt 0:01:05]} 28. Bxg6+ {[%emt 0:01:09]} hxg6 {[%emt 0:00:25]} 29. Qh7+ {[%emt 0:00:20]} Kf8 {[%emt 0:05:26]} 30. Qh8+ {[%emt 0:00:21]} Ke7 {[%emt 0:00:09]} 31. Qg7+ {[%emt 0:00:12]} Kd8 {[%emt 0:00:18]} 32. Qf8+ {[%emt 0:00:48]} Kd7 {[%emt 0:00:05]} 33. Qf7+ {[%emt 0:00:21]} Kc6 {[%emt 0:00:39]} 34. Nxa7+ {[%emt 0:00:57]} Kd6 {[%emt 0:01:19]} 35. Nb5+ {[%emt 0:01:47]} Kc5 {[%emt 0:01:07]} 36. a4 {[%emt 0:00:45]} Kb4 {[%emt 0:00:46]} 37. Qe7+ {[%emt 0:00:40]} Kxa4 {[%emt 0:01:10]} 38. Na7 {[%emt 0:01:08]} Rc1+ {[%emt 0:00:06]} 0-1

[Event "26th OIBM 2023"]
[Site "Gmund am Tegernsee"]
[Date "2023.10.29"]
[Round "2.13"]
[White "Fuchs, Florian"]
[Black "Golubka, Petro"]
[Result "0-1"]
[ECO "C58"]
[WhiteElo "2319"]
[BlackElo "2434"]
[Annotator "ChessBase"]
[PlyCount "120"]
[EventDate "2023.10.04"]
[EventType "swiss"]
[EventCountry "GER"]
[SourceTitle "playchess.com"]
[Source "ChessBase"]
[SourceQuality "1"]
[TimeControl "40/5400+30:1800+30"]

1. e4 {[%emt 0:00:02]} e5 {[%emt 0:00:04]} 2. Nf3 {[%emt 0:00:03]} Nc6 {[%emt 0:00:03]} 3. Bc4 {[%emt 0:00:04]} Nf6 {[%emt 0:00:06]} 4. Ng5 {[%emt 0:00:03]} d5 {[%emt 0:00:05]} 5. exd5 {[%emt 0:00:02]} Na5 {[%emt 0:00:03]} 6. Bb5+ {[%emt 0:00:03]} c6 {[%emt 0:00:03]} 7. dxc6 {[%emt 0:00:03]} bxc6 {[%emt 0:00:03]} 8. Bd3 {[%emt 0:00:04]} Nd5 {[%emt 0:00:13]} 9. Nf3 {[%emt 0:00:04]} Bd6 {[%emt 0:00:40]} 10. O-O {[%emt 0:00:06]} Nf4 {[%emt 0:00:48]} 11. Nc3 {[%emt 0:01:22]} Nxd3 {[%emt 0:00:44]} 12. cxd3 {[%emt 0:00:05]} O-O {[%emt 0:00:03]} 13. Ne4 {[%emt 0:02:28]} c5 {[%emt 0:00:11]} 14. b3 {[%emt 0:12:25]} Re8 {[%emt 0:02:27]} 15. Ba3 {[%emt 0:03:02]} Bg4 {[%emt 0:01:27]} 16. h3 {[%emt 0:21:31]} Bh5 {[%emt 0:00:08]} 17. Bxc5 {[%emt 0:09:46]} Bxc5 {[%emt 0:03:38]} 18. Nxc5 {[%emt 0:00:05]} Rc8 {[%emt 0:00:31]} 19. Rc1 {[%emt 0:10:06]} Qd5 {[%emt 0:00:51]} 20. Ne4 {[%emt 0:00:53]} Rxc1 {[%emt 0:02:37]} 21. Qxc1 {[%emt 0:00:03]} Bxf3 {[%emt 0:00:04]} 22. gxf3 {[%emt 0:00:06]} Nc6 {[%emt 0:00:08]} 23. Qc5 {[%emt 0:12:50]} Qe6 {[%emt 0:03:02]} 24. Qd6 {[%emt 0:01:59]} Nd4 {[%emt 0:02:52]} 25. Qxe6 {[%emt 0:00:43]} Rxe6 {[%emt 0:00:10]} 26. Kh1 {[%emt 0:09:34]} Rc6 {[%emt 0:10:18]} 27. Re1 {[%emt 0:01:07]} Nxf3 {[%emt 0:02:07]} 28. Re3 {[%emt 0:00:12]} Rc1+ {[%emt 0:00:30]} 29. Kg2 {[%emt 0:00:02]} Nh4+ {[%emt 0:00:29]} 30. Kh2 {[%emt 0:00:02]} Nf5 {[%emt 0:03:40]} 31. Re2 {[%emt 0:00:50]} Nd4 {[%emt 0:00:22]} 32. Re3 {[%emt 0:00:03]} Rc2 {[%emt 0:01:02]} 33. Kh1 {[%emt 0:05:28]} Rxa2 {[%emt 0:01:06]} 34. Nd6 {[%emt 0:00:26]} g6 {[%emt 0:02:36]} 35. Rxe5 {[%emt 0:00:35]} Rxd2 {[%emt 0:01:40]} 36. Re8+ {[%emt 0:07:05]} Kg7 {[%emt 0:00:12]} 37. Re7 {[%emt 0:00:09]} Rxf2 {[%emt 0:00:17]} 38. Kg1 {[%emt 0:00:14]} Rf4 {[%emt 0:05:51]} 39. Rxa7 {[%emt 0:02:17]} Nxb3 {[%emt 0:00:16]} 40. Kg2 {[%emt 0:00:36]} Nd4 {[%emt 0:05:15]} 41. Kg3 {[%emt 0:10:54]} g5 {[%emt 0:04:02]} 42. Ra5 {[%emt 0:03:06]} Kg6 {[%emt 0:01:47]} 43. Ne4 {[%emt 0:02:25]} f6 {[%emt 0:00:41]} 44. Ra6 {[%emt 0:01:33]} h5 {[%emt 0:00:45]} 45. Rb6 {[%emt 0:01:13]} Rf3+ {[%emt 0:09:03]} 46. Kg2 {[%emt 0:00:19]} g4 {[%emt 0:01:26]} 47. hxg4 {[%emt 0:00:52]} hxg4 {[%emt 0:00:13]} 48. Rb8 {[%emt 0:07:02]} f5 {[%emt 0:01:52]} 49. Rb6+ {[%emt 0:01:35]} Kh5 {[%emt 0:01:02]} 50. Ng3+ {[%emt 0:03:45]} Kg5 {[%emt 0:01:29]} 51. Rb8 {[%emt 0:00:38]} Ne6 {[%emt 0:02:15]} 52. Rg8+ {[%emt 0:00:42]} Kf6 {[%emt 0:00:09]} 53. Nh5+ {[%emt 0:01:50]} Kf7 {[%emt 0:00:12]} 54. Ra8 {[%emt 0:00:33]} Kg6 {[%emt 0:01:40]} 55. Ng3 {[%emt 0:00:28]} Nf4+ {[%emt 0:00:15]} 56. Kh2 {[%emt 0:00:05]} Rf2+ {[%emt 0:03:01]} 57. Kh1 {[%emt 0:00:25]} Ne2 {[%emt 0:01:47]} 58. Ra6+ {[%emt 0:01:00]} Kg5 {[%emt 0:00:16]} 59. Nxe2 {[%emt 0:00:09]} Rxe2 {[%emt 0:00:10]} 60. Ra5 {[%emt 0:00:09]} Rd2 {[%emt 0:00:19]} 0-1

[Event "26th OIBM 2023"]
[Site "Gmund am Tegernsee"]
[Date "2023.10.29"]
[Round "2.14"]
[White "Meins, Gerlef"]
[Black "Koehler, Christian Friedrich"]
[Result "1-0"]
[ECO "D23"]
[WhiteElo "2412"]
[BlackElo "2181"]
[Annotator "ChessBase"]
[PlyCount "55"]
[EventDate "2023.10.04"]
[EventType "swiss"]
[EventCountry "GER"]
[SourceTitle "playchess.com"]
[Source "ChessBase"]
[SourceQuality "1"]
[TimeControl "40/5400+30:1800+30"]

1. d4 {[%emt 0:00:05]} d5 {[%emt 0:00:05]} 2. c4 {[%emt 0:00:12]} c6 {[%emt 0:00:06]} 3. Nf3 {[%emt 0:00:17]} Nf6 {[%emt 0:00:06]} 4. Qc2 {[%emt 0:00:54]} dxc4 {[%emt 0:00:10]} 5. Qxc4 {[%emt 0:00:07]} Bg4 {[%emt 0:00:08]} 6. Nbd2 {[%emt 0:03:02]} Nbd7 {[%emt 0:00:13]} 7. g3 {[%emt 0:03:25]} e6 {[%emt 0:00:07]} 8. Bg2 {[%emt 0:00:27]} Be7 {[%emt 0:00:06]} 9. O-O {[%emt 0:04:07]} O-O {[%emt 0:00:07]} 10. Ne5 {[%emt 0:26:41]} Bh5 {[%emt 0:01:11]} 11. Ndf3 {[%emt 0:01:19]} Rc8 {[%emt 0:12:28]} 12. Bg5 {[%emt 0:18:55]} Bxf3 {[%emt 0:27:05]} 13. Nxf3 {[%emt 0:03:45]} h6 {[%emt 0:00:41]} 14. Bf4 {[%emt 0:03:36]} Qb6 {[%emt 0:07:10]} 15. Rfd1 {[%emt 0:05:23]} c5 {[%emt 0:06:51]} 16. Qb3 {[%emt 0:02:10]} c4 {[%emt 0:01:00]} 17. Qxb6 {[%emt 0:00:48]} Nxb6 {[%emt 0:00:16]} 18. Ne5 {[%emt 0:01:12]} Nfd5 {[%emt 0:02:31]} 19. Bd2 {[%emt 0:00:49]} Rc7 {[%emt 0:08:40]} 20. Rac1 {[%emt 0:06:32]} Rfc8 {[%emt 0:00:19]} 21. e4 {[%emt 0:01:46]} c3 {[%emt 0:01:41]} 22. exd5 {[%emt 0:01:28]} cxd2 {[%emt 0:00:15]} 23. Rxc7 {[%emt 0:00:07]} Rxc7 {[%emt 0:00:04]} 24. dxe6 {[%emt 0:00:28]} Rc1 {[%emt 0:02:59]} 25. exf7+ {[%emt 0:00:20]} Kf8 {[%emt 0:00:05]} 26. Bf3 {[%emt 0:00:26]} Na4 {[%emt 0:00:46]} 27. Kg2 {[%emt 0:03:08]} Rc2 {[%emt 0:09:02]} 28. Bd5 {[%emt 0:01:29]} 1-0

[Event "26th OIBM 2023"]
[Site "Gmund am Tegernsee"]
[Date "2023.10.29"]
[Round "2.15"]
[White "Khrapko, Marharyta"]
[Black "Weishaeutel, Moritz"]
[Result "1/2-1/2"]
[ECO "C47"]
[WhiteElo "2170"]
[BlackElo "2403"]
[Annotator "ChessBase"]
[PlyCount "111"]
[EventDate "2023.10.04"]
[EventType "swiss"]
[EventCountry "GER"]
[SourceTitle "playchess.com"]
[Source "ChessBase"]
[SourceQuality "1"]
[TimeControl "40/5400+30:1800+30"]

1. e4 {[%emt 0:00:01]} e5 {[%emt 0:00:03]} 2. Nf3 {[%emt 0:00:03]} Nc6 {[%emt 0:00:04]} 3. Nc3 {[%emt 0:00:02]} Nf6 {[%emt 0:00:08]} 4. g3 {[%emt 0:00:02]} Nxe4 {[%emt 0:07:27]} 5. Nxe4 {[%emt 0:00:05]} d5 {[%emt 0:00:02]} 6. Nc3 {[%emt 0:00:05]} d4 {[%emt 0:00:50]} 7. Bg2 {[%emt 0:00:01]} dxc3 {[%emt 0:00:45]} 8. bxc3 {[%emt 0:00:01]} Bc5 {[%emt 0:01:27]} 9. O-O {[%emt 0:00:37]} O-O {[%emt 0:00:06]} 10. d3 {[%emt 0:00:27]} Bg4 {[%emt 0:01:47]} 11. h3 {[%emt 0:00:23]} Bh5 {[%emt 0:00:58]} 12. Rb1 {[%emt 0:01:11]} Bb6 {[%emt 0:03:16]} 13. g4 {[%emt 0:06:19]} Bg6 {[%emt 0:00:06]} 14. Nd2 {[%emt 0:05:29]} Qd7 {[%emt 0:01:41]} 15. Nc4 {[%emt 1:23:14]} Rfe8 {[%emt 1:19:20]} 16. Re1 {[%emt 0:00:00]} Rad8 {[%emt 0:00:30]} 17. a4 {[%emt 0:01:00]} e4 {[%emt 0:00:00]} 18. d4 {[%emt 0:00:00]} Na5 19. Qe2 {[%emt 0:00:00]} Qc6 20. Rb4 {[%emt 0:00:00]} Nxc4 21. Rxc4 {[%emt 0:02:00]} Qd5 {[%emt 0:00:00]} 22. Bf4 {[%emt 0:00:00]} Rd7 23. Rb4 {[%emt 0:01:00]} c6 {[%emt 0:03:30]} 24. h4 {[%emt 0:00:00]} h5 {[%emt 0:00:00]} 25. g5 {[%emt 0:00:00]} Ba5 {[%emt 0:00:00]} 26. Rb3 {[%emt 0:00:00]} Bc7 {[%emt 0:00:00]} 27. Bxc7 {[%emt 0:00:00]} Rxc7 {[%emt 0:00:00]} 28. Qe3 {[%emt 0:00:00]} Bf5 {[%emt 0:00:00]} 29. Qf4 {[%emt 0:00:00]} Rce7 {[%emt 0:00:00]} 30. c4 {[%emt 0:00:00]} Qa5 {[%emt 0:00:00]} 31. Rbe3 {[%emt 0:00:00]} g6 {[%emt 0:00:00]} 32. Bxe4 {[%emt 0:00:26]} Bxe4 {[%emt 0:00:00]} 33. Rxe4 {[%emt 0:00:00]} Rxe4 {[%emt 0:00:00]} 34. Rxe4 {[%emt 0:00:04]} Rxe4 {[%emt 0:00:00]} 35. Qxe4 {[%emt 0:00:04]} Qxa4 {[%emt 0:00:00]} 36. Qe8+ {[%emt 0:01:47]} Kg7 {[%emt 0:00:00]} 37. Qe5+ {[%emt 0:01:25]} Kh7 {[%emt 0:00:00]} 38. d5 {[%emt 0:03:44]} cxd5 {[%emt 0:00:00]} 39. cxd5 {[%emt 0:00:00]} Qg4+ {[%emt 0:00:00]} 40. Kf1 {[%emt 0:00:00]} Qd1+ {[%emt 0:00:27]} 41. Kg2 {[%emt 0:29:20]} Qg4+ {[%emt 0:30:08]} 42. Kf1 {[%emt 0:01:53]} a5 {[%emt 0:04:27]} 43. d6 {[%emt 0:00:25]} Qd1+ {[%emt 0:00:52]} 44. Kg2 {[%emt 0:00:09]} a4 {[%emt 0:00:12]} 45. Qf4 {[%emt 0:00:00]} Qd5+ 46. Qf3 {[%emt 0:02:13]} Qxf3+ {[%emt 0:00:00]} 47. Kxf3 {[%emt 0:00:00]} a3 {[%emt 0:00:00]} 48. d7 {[%emt 0:00:00]} a2 {[%emt 0:00:00]} 49. d8=Q {[%emt 0:00:00]} a1=Q {[%emt 0:00:00]} 50. Kg2 {[%emt 0:00:00]} Qa4 {[%emt 0:00:00]} 51. Qd5 {[%emt 0:02:30]} Qg4+ {[%emt 0:00:00]} 52. Kf1 {[%emt 0:00:00]} Qh3+ 53. Kg1 Qg4+ {[%emt 0:00:00]} 54. Kf1 {[%emt 0:00:00]} Qh3+ 55. Kg1 {[%emt 0:00:00]} Qg4+ {[%emt 0:09:54]} 56. Kf1 1/2-1/2

[Event "26th OIBM 2023"]
[Site "Gmund am Tegernsee"]
[Date "2023.10.29"]
[Round "2.16"]
[White "Schmider, Niklas"]
[Black "Salzmann, Peter"]
[Result "1-0"]
[ECO "C41"]
[WhiteElo "2395"]
[BlackElo "2160"]
[Annotator "ChessBase"]
[PlyCount "85"]
[EventDate "2023.10.04"]
[EventType "swiss"]
[EventCountry "GER"]
[SourceTitle "playchess.com"]
[Source "ChessBase"]
[SourceQuality "1"]
[TimeControl "40/5400+30:1800+30"]

1. e4 {[%emt 0:05:23]} e5 {[%emt 0:00:29]} 2. Nf3 {[%emt 0:00:07]} d6 {[%emt 0:00:39]} 3. d4 {[%emt 0:00:26]} exd4 {[%emt 0:03:15]} 4. Nxd4 {[%emt 0:01:06]} Nf6 {[%emt 0:01:14]} 5. Nc3 {[%emt 0:00:23]} Be7 {[%emt 0:00:40]} 6. Be2 {[%emt 0:05:11]} O-O {[%emt 0:00:44]} 7. O-O {[%emt 0:00:40]} Bd7 {[%emt 0:01:32]} 8. f4 {[%emt 0:01:26]} Nc6 {[%emt 0:00:33]} 9. Bf3 {[%emt 0:02:56]} Nxd4 {[%emt 0:02:53]} 10. Qxd4 {[%emt 0:02:59]} Bc6 {[%emt 0:00:42]} 11. Be3 {[%emt 0:01:18]} Qc8 {[%emt 0:14:18]} 12. Rad1 {[%emt 0:03:36]} Rd8 {[%emt 0:01:39]} 13. a4 {[%emt 0:18:10]} a5 {[%emt 0:11:46]} 14. h3 {[%emt 0:01:00]} Nd7 {[%emt 0:13:17]} 15. Bg4 {[%emt 0:14:20]} Qb8 {[%emt 0:01:55]} 16. Nd5 {[%emt 0:07:46]} Bxd5 {[%emt 0:00:10]} 17. exd5 {[%emt 0:01:53]} Bf6 {[%emt 0:01:31]} 18. Qc4 {[%emt 0:00:48]} Re8 {[%emt 0:09:25]} 19. Bf2 {[%emt 0:02:36]} Nc5 {[%emt 0:01:17]} 20. Rfe1 {[%emt 0:03:34]} Qa7 {[%emt 0:03:07]} 21. Qb5 {[%emt 0:04:03]} Kf8 {[%emt 0:00:38]} 22. c3 {[%emt 0:01:56]} Qa6 {[%emt 0:00:26]} 23. Be2 {[%emt 0:01:24]} Qxb5 {[%emt 0:05:49]} 24. Bxb5 {[%emt 0:00:26]} Rxe1+ {[%emt 0:00:16]} 25. Rxe1 {[%emt 0:00:39]} Rd8 {[%emt 0:02:16]} 26. g4 {[%emt 0:01:15]} h6 {[%emt 0:00:06]} 27. Kg2 {[%emt 0:06:38]} Nd7 {[%emt 0:00:55]} 28. Be3 {[%emt 0:03:17]} g5 {[%emt 0:00:37]} 29. Rf1 {[%emt 0:01:54]} Kg7 {[%emt 0:00:01]} 30. fxg5 {[%emt 0:00:46]} Bxg5 {[%emt 0:02:32]} 31. Bd4+ {[%emt 0:00:37]} Bf6 {[%emt 0:03:35]} 32. Rxf6 {[%emt 0:01:53]} Nxf6 {[%emt 0:00:08]} 33. h4 {[%emt 0:00:06]} c5 {[%emt 0:03:57]} 34. dxc6 {[%emt 0:00:06]} bxc6 {[%emt 0:00:01]} 35. Bxc6 {[%emt 0:00:15]} Rb8 {[%emt 0:01:48]} 36. g5 {[%emt 0:00:22]} hxg5 {[%emt 0:00:02]} 37. hxg5 {[%emt 0:00:08]} Rxb2+ {[%emt 0:01:00]} 38. Kf3 {[%emt 0:00:06]} Kg6 {[%emt 0:01:11]} 39. gxf6 {[%emt 0:00:06]} Rh2 {[%emt 0:00:58]} 40. Be4+ {[%emt 0:01:47]} Kg5 {[%emt 0:00:20]} 41. Ke3 {[%emt 0:30:24]} Rh3+ {[%emt 0:30:31]} 42. Kd2 {[%emt 0:00:24]} Rh2+ {[%emt 0:01:10]} 43. Kd3 {[%emt 0:00:10]} 1-0

[Event "26th OIBM 2023"]
[Site "Gmund am Tegernsee"]
[Date "2023.10.29"]
[Round "2.17"]
[White "Kerpe, Andreas"]
[Black "Kargin, Arseny"]
[Result "0-1"]
[ECO "B22"]
[WhiteElo "2157"]
[BlackElo "2391"]
[Annotator "ChessBase"]
[PlyCount "64"]
[EventDate "2023.10.04"]
[EventType "swiss"]
[EventCountry "GER"]
[SourceTitle "playchess.com"]
[Source "ChessBase"]
[SourceQuality "1"]
[TimeControl "40/5400+30:1800+30"]

1. e4 {[%emt 0:00:05]} c5 {[%emt 0:00:05]} 2. d3 {[%emt 0:00:04]} Nc6 {[%emt 0:00:17]} 3. f4 {[%emt 0:00:06]} g6 {[%emt 0:00:36]} 4. Nf3 {[%emt 0:00:13]} Bg7 {[%emt 0:00:07]} 5. Be2 {[%emt 0:00:09]} d6 {[%emt 0:12:35]} 6. O-O {[%emt 0:00:46]} Nf6 {[%emt 0:00:05]} 7. c3 {[%emt 0:06:13]} O-O {[%emt 0:03:07]} 8. Na3 {[%emt 0:07:14]} Rb8 {[%emt 0:02:02]} 9. Qe1 {[%emt 0:09:27]} b5 {[%emt 0:04:08]} 10. Nc2 {[%emt 0:11:00]} b4 {[%emt 0:01:30]} 11. c4 {[%emt 0:08:31]} b3 {[%emt 0:13:57]} 12. axb3 {[%emt 0:02:00]} Rxb3 {[%emt 0:00:24]} 13. Qh4 {[%emt 0:09:26]} e6 {[%emt 0:20:26]} 14. Ra2 {[%emt 0:08:57]} Nd7 {[%emt 0:02:27]} 15. Qxd8 {[%emt 0:06:13]} Rxd8 {[%emt 0:00:06]} 16. Rd1 {[%emt 0:07:12]} Nf6 {[%emt 0:05:28]} 17. Bd2 {[%emt 0:06:37]} Ne8 {[%emt 0:00:15]} 18. Rb1 {[%emt 0:01:26]} d5 {[%emt 0:06:55]} 19. Be3 {[%emt 0:09:04]} dxe4 {[%emt 0:03:53]} 20. dxe4 {[%emt 0:00:01]} Nd4 {[%emt 0:00:47]} 21. Bxd4 {[%emt 0:00:55]} cxd4 {[%emt 0:00:17]} 22. Nd2 {[%emt 0:00:39]} Rb7 {[%emt 0:03:19]} 23. Bd3 {[%emt 0:00:11]} Bh6 {[%emt 0:01:41]} 24. g3 {[%emt 0:01:45]} e5 {[%emt 0:00:08]} 25. Rf1 {[%emt 0:00:56]} exf4 {[%emt 0:00:59]} 26. gxf4 {[%emt 0:00:01]} Ng7 {[%emt 0:00:15]} 27. Ne1 {[%emt 0:01:53]} Nh5 {[%emt 0:03:06]} 28. Ng2 {[%emt 0:00:18]} Bh3 {[%emt 0:00:26]} 29. Rf2 {[%emt 0:00:21]} Bxg2 {[%emt 0:00:44]} 30. Rxg2 {[%emt 0:00:01]} Nxf4 {[%emt 0:00:34]} 31. Rg3 {[%emt 0:00:03]} Nh5 {[%emt 0:00:47]} 32. Rg2 {[%emt 0:00:29]} Be3+ {[%emt 0:00:05]} 0-1

[Event "26th OIBM 2023"]
[Site "Gmund am Tegernsee"]
[Date "2023.10.29"]
[Round "2.18"]
[White "Colpe, Malte"]
[Black "Ehrke, Michael"]
[Result "1-0"]
[ECO "D30"]
[WhiteElo "2386"]
[BlackElo "2156"]
[Annotator "ChessBase"]
[PlyCount "59"]
[EventDate "2023.10.04"]
[EventType "swiss"]
[EventCountry "GER"]
[SourceTitle "playchess.com"]
[Source "ChessBase"]
[SourceQuality "1"]
[TimeControl "40/5400+30:1800+30"]

1. d4 {[%emt 0:00:04]} d5 {[%emt 0:00:20]} 2. c4 {[%emt 0:00:08]} e6 {[%emt 0:00:26]} 3. Nf3 {[%emt 0:00:19]} c5 {[%emt 0:00:39]} 4. cxd5 {[%emt 0:00:19]} exd5 {[%emt 0:00:25]} 5. g3 {[%emt 0:00:34]} Nc6 {[%emt 0:00:31]} 6. Bg2 {[%emt 0:00:16]} Nf6 {[%emt 0:00:34]} 7. O-O {[%emt 0:00:13]} Be7 {[%emt 0:00:32]} 8. dxc5 {[%emt 0:00:43]} Bxc5 {[%emt 0:00:56]} 9. a3 {[%emt 0:00:48]} Ne4 {[%emt 0:12:32]} 10. Nfd2 {[%emt 0:00:24]} Bf5 {[%emt 0:03:57]} 11. Nxe4 {[%emt 0:01:59]} Bxe4 {[%emt 0:01:59]} 12. Bxe4 {[%emt 0:00:48]} dxe4 {[%emt 0:00:11]} 13. Qc2 {[%emt 0:00:29]} Qe7 {[%emt 0:05:53]} 14. Nc3 {[%emt 0:01:14]} Nd4 {[%emt 0:06:55]} 15. Qxe4 {[%emt 0:19:48]} Qxe4 {[%emt 0:11:05]} 16. Nxe4 {[%emt 0:00:08]} Be7 {[%emt 0:00:49]} 17. Nc3 {[%emt 0:09:54]} Nb3 {[%emt 0:06:49]} 18. Rb1 {[%emt 0:00:15]} Rd8 {[%emt 0:07:18]} 19. Be3 {[%emt 0:06:38]} Nd2 {[%emt 0:01:47]} 20. Bxd2 {[%emt 0:00:21]} Rxd2 {[%emt 0:00:35]} 21. Rfd1 {[%emt 0:02:39]} Rxd1+ {[%emt 0:00:51]} 22. Rxd1 {[%emt 0:00:18]} Bf6 {[%emt 0:01:08]} 23. Rd3 {[%emt 0:03:39]} O-O {[%emt 0:03:28]} 24. e4 {[%emt 0:05:30]} h5 {[%emt 0:07:43]} 25. Kf1 {[%emt 0:08:11]} a6 {[%emt 0:09:07]} 26. f4 {[%emt 0:04:05]} Rc8 {[%emt 0:03:04]} 27. Ke2 {[%emt 0:04:10]} b5 {[%emt 0:03:11]} 28. e5 {[%emt 0:03:01]} Be7 {[%emt 0:03:35]} 29. Kd2 {[%emt 0:03:37]} Rb8 {[%emt 0:02:20]} 30. Rd7 {[%emt 0:05:02]} 1-0

[Event "26th OIBM 2023"]
[Site "Gmund am Tegernsee"]
[Date "2023.10.29"]
[Round "2.19"]
[White "Schleicher, Guido"]
[Black "Schachinger, Mario"]
[Result "0-1"]
[ECO "B94"]
[WhiteElo "2154"]
[BlackElo "2385"]
[Annotator "ChessBase"]
[PlyCount "66"]
[EventDate "2023.10.04"]
[EventType "swiss"]
[EventCountry "GER"]
[SourceTitle "playchess.com"]
[Source "ChessBase"]
[SourceQuality "1"]
[TimeControl "40/5400+30:1800+30"]

1. e4 {[%emt 0:00:11]} c5 {[%emt 0:01:33]} 2. Nf3 {[%emt 0:00:12]} d6 {[%emt 0:00:06]} 3. d4 {[%emt 0:00:06]} cxd4 {[%emt 0:00:05]} 4. Nxd4 {[%emt 0:00:09]} Nf6 {[%emt 0:00:07]} 5. Nc3 {[%emt 0:00:06]} a6 {[%emt 0:00:42]} 6. Bg5 {[%emt 0:00:12]} Nbd7 {[%emt 0:00:49]} 7. f4 {[%emt 0:03:17]} h6 {[%emt 0:02:47]} 8. Bh4 {[%emt 0:01:38]} g6 {[%emt 0:00:15]} 9. Qe2 {[%emt 0:18:20]} e5 {[%emt 0:02:30]} 10. fxe5 {[%emt 0:01:51]} dxe5 {[%emt 0:02:20]} 11. Nb3 {[%emt 0:00:53]} Bb4 {[%emt 0:12:28]} 12. O-O-O {[%emt 0:05:13]} Bxc3 {[%emt 0:00:21]} 13. bxc3 {[%emt 0:00:06]} Qc7 {[%emt 0:00:14]} 14. Qf3 {[%emt 0:01:20]} g5 {[%emt 0:04:46]} 15. Bg3 {[%emt 0:02:20]} Qc6 {[%emt 0:04:26]} 16. Rd5 {[%emt 0:03:18]} Nxd5 {[%emt 0:00:30]} 17. exd5 {[%emt 0:00:30]} Qd6 {[%emt 0:08:04]} 18. c4 {[%emt 0:06:21]} Qa3+ {[%emt 0:08:39]} 19. Kb1 {[%emt 0:04:31]} a5 {[%emt 0:03:03]} 20. Qe4 {[%emt 0:11:25]} Qe7 {[%emt 0:16:03]} 21. c5 {[%emt 0:04:24]} a4 {[%emt 0:09:40]} 22. d6 {[%emt 0:04:59]} Qf6 {[%emt 0:00:47]} 23. Bb5 {[%emt 0:00:45]} axb3 {[%emt 0:03:06]} 24. Rf1 {[%emt 0:03:42]} bxc2+ {[%emt 0:08:31]} 25. Kc1 {[%emt 0:03:42]} Qe6 {[%emt 0:01:09]} 26. Bc4 {[%emt 0:01:05]} Ra4 {[%emt 0:00:26]} 27. Bxe6 {[%emt 0:13:29]} Rxe4 {[%emt 0:00:07]} 28. Rxf7 {[%emt 0:00:13]} Rf8 {[%emt 0:02:30]} 29. Re7+ {[%emt 0:01:06]} Kd8 {[%emt 0:00:04]} 30. Kxc2 {[%emt 0:00:42]} Re8 {[%emt 0:01:36]} 31. Bf5 {[%emt 0:05:15]} Rc4+ {[%emt 0:01:03]} 32. Kb3 {[%emt 0:00:43]} Rxc5 {[%emt 0:00:33]} 33. Rh7 {[%emt 0:00:32]} Nf8 {[%emt 0:01:45]} 0-1

[Event "26th OIBM 2023"]
[Site "Gmund am Tegernsee"]
[Date "2023.10.29"]
[Round "2.20"]
[White "Meissner, Felix"]
[Black "Liepold, Stefan"]
[Result "1-0"]
[ECO "A29"]
[WhiteElo "2382"]
[BlackElo "2150"]
[Annotator "ChessBase"]
[PlyCount "61"]
[EventDate "2023.10.04"]
[EventType "swiss"]
[EventCountry "GER"]
[SourceTitle "playchess.com"]
[Source "ChessBase"]
[SourceQuality "1"]
[TimeControl "40/5400+30:1800+30"]

1. c4 {[%emt 0:00:09]} e5 {[%emt 0:00:25]} 2. Nc3 {[%emt 0:00:41]} Nf6 {[%emt 0:00:30]} 3. Nf3 {[%emt 0:00:23]} Nc6 {[%emt 0:00:23]} 4. g3 {[%emt 0:00:19]} d5 {[%emt 0:00:56]} 5. cxd5 {[%emt 0:00:16]} Nxd5 {[%emt 0:00:07]} 6. Bg2 {[%emt 0:00:15]} Nb6 {[%emt 0:00:34]} 7. O-O {[%emt 0:00:32]} Be7 {[%emt 0:00:22]} 8. a3 {[%emt 0:00:41]} O-O {[%emt 0:01:02]} 9. b4 {[%emt 0:00:18]} a5 {[%emt 0:05:30]} 10. b5 {[%emt 0:00:34]} Nd4 {[%emt 0:00:11]} 11. Nxe5 {[%emt 0:00:45]} Bf6 {[%emt 0:06:34]} 12. f4 {[%emt 0:01:19]} a4 {[%emt 0:26:43]} 13. e3 {[%emt 0:10:50]} Nb3 {[%emt 0:01:15]} 14. Rb1 {[%emt 0:01:47]} Bf5 {[%emt 0:15:44]} 15. Ne4 {[%emt 0:19:27]} Bxe5 {[%emt 0:21:22]} 16. fxe5 {[%emt 0:02:06]} Qd3 {[%emt 0:02:55]} 17. Rxf5 {[%emt 0:20:46]} Qxb1 {[%emt 0:00:46]} 18. Rf1 {[%emt 0:06:52]} Nxc1 {[%emt 0:03:41]} 19. Qxc1 {[%emt 0:02:44]} Qxc1 {[%emt 0:06:24]} 20. Rxc1 {[%emt 0:00:01]} Rad8 {[%emt 0:01:45]} 21. d4 {[%emt 0:02:39]} Nd5 {[%emt 0:00:26]} 22. Kf2 {[%emt 0:01:02]} c6 {[%emt 0:00:44]} 23. Nd6 {[%emt 0:04:14]} f6 {[%emt 0:01:33]} 24. Ke2 {[%emt 0:00:50]} fxe5 {[%emt 0:00:22]} 25. dxe5 {[%emt 0:00:24]} Ne7 {[%emt 0:01:44]} 26. Nxb7 {[%emt 0:00:23]} cxb5 {[%emt 0:00:43]} 27. Nxd8 {[%emt 0:00:51]} Rxd8 {[%emt 0:00:04]} 28. Rc7 {[%emt 0:00:57]} Ng6 {[%emt 0:00:56]} 29. e6 {[%emt 0:03:08]} Rb8 {[%emt 0:00:18]} 30. e7 {[%emt 0:00:33]} Ne5 {[%emt 0:00:54]} 31. Bd5+ {[%emt 0:01:46]} 1-0